Cogmind - Beta 15 @@@ ROGUE MODE // 2025.07.08 @ 13:32:45 Player: Err. String Expected Got Nil Result: Self-destructed Performance ------------- Evolutions (3) 1500 Regions Visited (8) 1600 Robots Destroyed (137) 685 Value Destroyed (2978) 2978 Prototype IDs (12) 240 Alien Tech Used (0) 0 Bonus (214) 214 TOTAL SCORE: 7217 Bonus ------- High Alert Combat Kills 232 Friendly Fire -18 Cogmind --------- Core Integrity 518/700 Matter 242/300 Energy 290/290 System Corruption 4% Temperature Cool (9) Movement Hovering (171) Ox2 Location -7/Factory Parts ------- > --- POWER (1) -------- Improved Deuterium Engine > --- PROPULSION (4) --- Aerolev Unit Antigrav System (fused) > --- UTILITY (5) ------ Large Storage Unit Improved Sensor Array Improved Signal Interpreter Improved Light Armor Plating System Shield > --- WEAPON (3) ------- Heavy Particle Gun Gauss Rifle Impact Mace > --- INVENTORY (15) --- Improved Deuterium Engine Aerolev Unit Aerolev Unit Gravmag System Gravmag System Improved Heat Sink Improved Sensor Array Improved Signal Interpreter Medium Armor Plating Improved Medium Armor Plating Advanced Shield Generator System Shield Heavy Particle Gun Heavy Ion Cannon Rocket Launcher Peak State ------------ > --- POWER ------------ Improved Deuterium Engine > --- PROPULSION ------- Aerolev Unit Aerolev Unit Aerolev Unit Antigrav System > --- UTILITY ---------- Large Storage Unit Improved Sensor Array Improved Signal Interpreter Improved Medium Armor Plating System Shield > --- WEAPON ----------- Precision Shock Rifle Gauss Rifle Impact Mace > --- INVENTORY -------- Improved Deuterium Engine Aerolev Unit Aerolev Unit Aerolev Unit Improved Heat Sink Improved Sensor Array Improved Signal Interpreter Medium Armor Plating Advanced Shield Generator System Shield Heavy Ion Cannon Minigun High-powered Shotgun Gauss Rifle Rocket Launcher [Rating: 55] Favorites ----------- Power Improved Deuterium Engine Engine Improved Deuterium Engine Propulsion Aerolev Unit Treads Light Treads Wheel Wheel Hover Unit Aerolev Unit Utility Large Storage Unit Device Improved Sensor Array Storage Large Storage Unit Processor Improved Signal Interpreter Hackware System Shield Protection Hardened Medium Armor Plating Weapon Gauss Rifle Energy Gun Medium Laser Energy Cannon Advanced Beam Cannon Ballistic Gun Gauss Rifle Ballistic Cannon Improved Light Cannon Launcher Rocket Launcher Special Weapon Mining Laser Impact Weapon Impact Mace Build | -11 -10 -10 -9 -9 -9 -8 -8 -7 ------- Run | Yrd Mat Min Mat Min Exi Min Mat Fac Slots Evolved 6 | . . . 2 . . . 2 2 Power . | . . . . . . . . . Propulsion 2 | . . . . . . . 1 1 Utility 3 | . . . 1 . . . 1 1 Weapon 1 | . . . 1 . . . . . Parts Attached 64 | 7 3 4 10 . 1 . 22 17 Power 6 | 1 . . 1 . . . 1 3 Engine 6 | 1 . . 1 . . . 1 3 Core . | . . . . . . . . . Reactor . | . . . . . . . . . Propulsion 12 | 2 . . 2 . . . 4 4 Treads 2 | 2 . . . . . . . . Leg . | . . . . . . . . . Wheel 5 | . . . 2 . . . 3 . Hover 5 | . . . . . . . 1 4 Flight . | . . . . . . . . . Utility 20 | 2 1 1 2 . 1 . 9 4 Device 6 | 1 . 1 2 . . . 2 . Storage 3 | 1 1 . . . 1 . . . Processor 2 | . . . . . . . 2 . Hackware 3 | . . . . . . . 1 2 Protection 6 | . . . . . . . 4 2 Artifact . | . . . . . . . . . Weapon 26 | 2 2 3 5 . . . 8 6 Energy Gun 6 | 1 . . 1 . . . . 4 Energy Cannon 4 | . . 2 2 . . . . . Ballistic Gun 9 | 1 . . . . . . 6 2 Ballistic Cannon 1 | . . . 1 . . . . . Launcher 2 | . 1 1 . . . . . . Special Weapon 1 | . 1 . . . . . . . Impact Weapon 3 | . . . 1 . . . 2 . Slashing Weapon . | . . . . . . . . . Piercing Weapon . | . . . . . . . . . Special Melee Weapon . | . . . . . . . . . Unidentified Prototypes 8 | . . . 3 . . . 2 3 Parts Lost 10 | . . . 2 . . . 4 4 Power 1 | . . . 1 . . . . . Propulsion 5 | . . . 1 . . . 2 2 Utility 3 | . . . . . . . 2 1 Weapon 1 | . . . . . . . . 1 Highest Loss Streak 2 | . . . 1 . . . 2 2 To Critical Strikes . | . . . . . . . . . Average Backups 14 | 1 7 12 14 15 15 15 17 14 Power 1 | . 1 1 1 1 1 1 . . Propulsion 2 | . . 2 2 2 2 2 4 2 Utility 5 | . 2 4 5 7 7 7 6 5 Weapon 4 | . 2 4 4 4 4 4 5 5 Tool/Special . | . . . . . . . . . Unused Backups 24 | . . . 1 . . . 5 18 Power 1 | . . . . . . . . 1 Propulsion 7 | . . . . . . . 3 4 Utility 6 | . . . . . . . . 6 Weapon 9 | . . . 1 . . . 2 6 Tool/Special 1 | . . . . . . . . 1 Average Slot Usage (%) 98 | . 100 100 98 100 100 100 96 99 Engine 9 | . 14 14 10 11 11 11 9 7 Treads 4 | . 28 28 7 . . . . . Wheel 8 | . . . 13 22 22 22 24 . Hover 13 | . . . . . . . . 29 Device 12 | . 14 14 21 22 22 22 12 7 Storage 9 | . 14 14 11 11 11 11 9 7 Processor 5 | . . . . . . . 9 7 Hackware 3 | . . . . . . . 1 6 Protection 3 | . . . . . . . 3 6 Energy Gun 1 | . 13 2 . . . . . 1 Energy Cannon 6 | . . 21 22 22 22 22 3 . Ballistic Gun 13 | . 14 3 2 . . . 19 17 Launcher 1 | . . . 4 11 11 11 . . Impact Weapon 2 | . . . . . . . 1 3 Peak Build Rating 55 | 7 9 11 21 20 20 20 32 55 Average Rating 32 | 5 7 9 17 20 20 20 26 50 On Entrance 15 | . 7 8 10 20 20 20 20 32 Naked Turns . | . . . . . . . . . Heaviest Build 66 | 15 30 32 42 42 62 62 66 50 Greatest Support 40 | 40 40 40 40 20 20 20 32 35 Greatest Overweight (x) 6 | . . . 3 2 3 3 6 2 Average Overweight (x) 1 | . . . 1 2 2 3 2 1 Largest Inventory Capacity 20 | 8 15 15 15 15 20 20 20 20 Average Capacity 15 | 7 14 15 15 15 15 20 20 15 Most Carried 20 | 2 12 13 15 15 15 15 20 19 Average Carried 14 | 1 7 12 14 15 15 15 17 14 Final Capacity 20 | 8 15 15 15 15 20 20 20 15 Final Carried 20 | 2 12 12 15 15 15 15 20 15 Class Distribution -------------------- 56% | Skirmisher 42% | Mutant Dominant Class ---------------- Mutant | -10/Materials Mutant | -10/Mines Skirmisher | -9/Materials Skirmisher | -9/Mines Skirmisher | -9/Exiles Skirmisher | -8/Mines Skirmisher | -8/Materials Mutant | -7/Factory Resources | -11 -10 -10 -9 -9 -9 -8 -8 -7 ----------- Run | Yrd Mat Min Mat Min Exi Min Mat Fac Matter Collected 2741 | 312 141 15 378 64 . 10 739 1082 Remotely . | . . . . . . . . . Salvage Created 3693 | 147 353 61 848 . . . 750 1534 Parts 260 | 23 25 9 68 . . . 58 77 Haulers Intercepted 13 | . . . 5 . . . 3 5 Recyclers Shooed 3 | . 1 . 1 . . . . 1 Parts Field Recycled . | . . . . . . . . . Retrieved Matter . | . . . . . . . . . Parts Self-Destructed . | . . . . . . . . . Prevented . | . . . . . . . . . Kills | -11 -10 -10 -9 -9 -9 -8 -8 -7 ------- Run | Yrd Mat Min Mat Min Exi Min Mat Fac Combat Hostiles Destroyed 78 | . 9 6 23 . . . 15 25 Melee 5 | . . . . . . . 2 3 Guns 29 | . 7 . . . . . 8 14 Cannons 12 | . . 3 7 . . . 2 . AOE 29 | . 2 3 16 . . . 3 5 Classes Destroyed 13 | 2 5 . 5 . . . . 1 Worker 12 | 2 . . 3 . . . 4 3 Builder 8 | . 1 . 4 . . . 3 . Tunneler 9 | 6 . 1 1 . . . . 1 Hauler 13 | . . . 5 . . . 3 5 Recycler 5 | . . . 1 . . . . 4 Operator 5 | . 1 . 1 . . . 2 1 Watcher 7 | . 2 . 2 . . . 1 2 Swarmer 39 | . 3 6 15 . . . 3 12 Grunt 21 | . 6 . 5 . . . 6 4 Brawler 1 | . . . 1 . . . . . Duelist 1 | . . . 1 . . . . . Sentry 9 | . . . 1 . . . 6 2 Programmer 7 | . . . . . . . . 7 Best Kill Streak 12 | 3 4 4 12 . . . 5 6 Combat Bots Only 7 | . 3 3 7 . . . 3 4 Max Kills in Single Turn 5 | 1 3 4 5 . . . 3 4 Gunslinging 1 | . . . . . . . . 1 Exploded 5 | . 1 3 5 . . . 2 2 Melee 1 | . . . . . . . 1 1 Uniques/NPCs Destroyed . | . . . . . . . . . Combat | -11 -10 -10 -9 -9 -9 -8 -8 -7 -------- Run | Yrd Mat Min Mat Min Exi Min Mat Fac Hostile Shots Fired 335 | . 34 17 48 . . . 101 135 Missed 88 | . 10 6 14 . . . 33 25 Hits 247 | . 24 11 34 . . . 68 110 Projectile 247 | . 24 11 34 . . . 68 110 AOE 1 | . . . 1 . . . . . Critical Strikes 6 | . . . 1 . . . 2 3 Part Disruptions 1 | . . . . . . . . 1 Damage Taken 3502 | . 277 107 307 . . . 1042 1769 Core 467 | . 37 6 26 . . . 216 182 Absorbed by Shields . | . . . . . . . . . Regen/Repaired (Parts) 149 | . . . . . . . 99 50 Core Remaining (%) 83 | 100 . 82 . . . 93 60 . Volleys Fired 222 | 14 33 7 40 . . . 62 66 Largest 3 | 2 2 2 3 . . . 3 3 Hottest 188 | 70 100 120 188 . . . 136 111 Shots Fired 512 | 28 63 11 84 . . . 155 171 Gun 368 | 28 60 . 7 . . . 105 168 Cannon 122 | . . 8 68 . . . 46 . Launcher 21 | . 2 3 9 . . . 4 3 Special 1 | . 1 . . . . . . . Kinetic 332 | 14 30 . 12 . . . 116 160 Thermal 159 | 14 31 8 63 . . . 35 8 Explosive 21 | . 2 3 9 . . . 4 3 Electromagnetic . | . . . . . . . . . Robot Hit Streak 11 | 5 11 6 8 . . . 10 9 Robot Miss Streak 5 | 2 3 1 3 . . . 4 5 Penetration Max 1 | . . . . . . . . 1 Secondary Targets 2 | . . . . . . . . 2 Max Gunslinging Chain 1 | . . . . . . . . 1 Shots Hit Robots 316 | 17 40 5 36 . . . 106 112 Core Hits 174 | 8 22 8 43 . . . 49 44 Critical Kills 5 | . . . 1 . . . 2 2 Critical Parts Destroyed 9 | . . . . . . . 2 7 Critical Strikes 19 | . 4 . 1 . . . 5 9 Burn 4 | . 4 . . . . . . . Meltdown 1 | . . . 1 . . . . . Destroy 3 | . . . . . . . 1 2 Smash 11 | . . . . . . . 4 7 Melee Attacks 59 | . . . 3 . . . 9 47 Impact 59 | . . . 3 . . . 9 47 Slashing . | . . . . . . . . . Piercing . | . . . . . . . . . Sneak Attacks 8 | . . . . . . . . 8 Combat Hostiles 1 | . . . . . . . . 1 Follow-up Attacks . | . . . . . . . . . Damage Inflicted 9742 | 236 738 321 1926 . . . 2531 3990 Guns 3812 | 236 505 . 11 . . . 1303 1757 Cannons 1406 | . . 86 696 . . . 624 . Explosions 2574 | . 233 235 1219 . . . 306 581 Melee 1950 | . . . . . . . 298 1652 Ramming . | . . . . . . . . . Kinetic 3558 | 124 270 . 31 . . . 1521 1612 Thermal 1818 | 112 235 86 676 . . . 406 303 Explosive 2404 | . 233 235 1219 . . . 294 423 Electromagnetic 12 | . . . . . . . 12 . Impact 1950 | . . . . . . . 298 1652 Slashing . | . . . . . . . . . Piercing . | . . . . . . . . . Highest Corruption 4 | . 1 1 . . . . . 4 Average Corruption 2 | . 1 1 . . . . . 2 Corruption Purged . | . . . . . . . . . Corruption Blocked . | . . . . . . . . . Effects 32 | . . 1 . . . . . 31 Message Errors 5 | . . 1 . . . . . 4 Matter Fused 11 | . . . . . . . . 11 Heat Flow Errors 3 | . . . . . . . . 3 Energy Discharges 3 | . . . . . . . . 3 Parts Rejected 1 | . . . . . . . . 1 Parts Fused 1 | . . . . . . . . 1 Data Loss (minor) 4 | . . . . . . . . 4 Misfires 4 | . . . . . . . . 4 Overload Shots . | . . . . . . . . . Overflow Damage 1015 | . . 4 34 . . . 25 952 Projectiles 24 | . . . 24 . . . . . Explosions 200 | . . 4 10 . . . 5 181 Melee 791 | . . . . . . . 20 771 Knockbacks 9 | . . . . . . . 3 6 Impact 7 | . . . . . . . 1 6 Kinetic 2 | . . . . . . . 2 . Secondary . | . . . . . . . . . Self-Inflicted Damage 231 | . . 23 . . . . 16 192 Shots 5 | . . 1 . . . . 2 2 Rammed . | . . . . . . . . . Targets Rammed . | . . . . . . . . . Kicked . | . . . . . . . . . Crushed . | . . . . . . . . . Highest Temperature 270 | 54 168 72 263 . . . 198 270 Average Temperature 50 | 17 39 36 54 . . . 41 64 Received Heat Transfer 951 | . 123 . 42 . . . 513 273 Effects 2 | . . . 2 . . . . . Interference 2 | . . . 2 . . . . . Siege Activations . | . . . . . . . . . Martial Activations . | . . . . . . . . . Shielding Activations . | . . . . . . . . . Robots Disrupted . | . . . . . . . . . Combat Hostiles . | . . . . . . . . . Robots Corrupted 7 | . . . . . . . . 7 Combat Hostiles 3 | . . . . . . . . 3 Parts Fried 10 | . . . . . . . . 10 Impact Corruptions 26 | . . . . . . . 1 25 Robots Melted 1 | . . . 1 . . . . . Combat Hostiles . | . . . . . . . . . Parts Melted 8 | 2 2 . 2 . . . 1 1 Heat Transferred 3824 | 333 999 185 1258 . . . 777 272 Parts Sabotaged . | . . . . . . . . . Parts Stolen . | . . . . . . . . . Parts Stripped . | . . . . . . . . . Power Chain Reactions . | . . . . . . . . . Alert | -11 -10 -10 -9 -9 -9 -8 -8 -7 ------- Run | Yrd Mat Min Mat Min Exi Min Mat Fac Maximum Alert Level 3 | . . . 2 . . . . 3 Low Security (%) 65 | 100 100 100 28 100 . 100 100 46 Level 1 10 | . . . 49 . . . . 8 Level 2 16 | . . . 21 . . . . 28 Level 3 7 | . . . . . . . . 16 Level 4 . | . . . . . . . . . Level 5 . | . . . . . . . . . High Security . | . . . . . . . . . Max Security . | . . . . . . . . . Peak Influence 870 | 10 190 154 456 160 . . 129 870 Initial 160 | . . 48 48 160 . . . 46 Average 218 | 1 101 87 277 78 . . 69 332 Influence Increases 3206 | 40 342 166 757 . . . 590 1311 Destroy 0b10 Robot/C 1560 | . 180 120 460 . . . 300 500 Destroy 0b10 Robot/NC 290 | 40 20 5 85 . . . 60 80 Destroy Leader 420 | . 64 20 84 . . . 98 154 Successful Hack 113 | . . . 26 . . . 22 65 Disable Machine 285 | . 15 . 45 . . . 60 165 Destroy Structure 208 | . 18 21 57 . . . 20 92 Partial Spotted 60 | . . . . . . . . 60 Lose Combat Pursuer 270 | . 45 . . . . . 30 195 Influence Decreases 2336 | 40 217 167 468 413 . . 488 543 Entered New Map 462 | . . 77 76 253 . . . 56 Time Decay 1774 | 40 217 90 372 160 . . 448 447 Lost Part 100 | . . . 20 . . . 40 40 Squads Dispatched 24 | . 3 . 1 . . . 3 17 Investigation 2 | . 1 . . . . . . 1 Extermination 6 | . . . . . . . . 6 Reinforcement 11 | . 2 . 1 . . . 3 5 Assault . | . . . . . . . . . Garrison 5 | . . . . . . . . 5 Intercept . | . . . . . . . . . Searches Triggered . | . . . . . . . . . Construction Impeded 2 | . . . . . . . 1 1 Haulers Reinforced 2 | . . . . . . . . 2 Active Scanning Responses . | . . . . . . . . . Cargo Convoy Interrupts . | . . . . . . . . . Stealth | -11 -10 -10 -9 -9 -9 -8 -8 -7 --------- Run | Yrd Mat Min Mat Min Exi Min Mat Fac Distress Signals 3 | . 1 . . . . . 1 1 Communications Jammed . | . . . . . . . . . Distress Signals . | . . . . . . . . . Times Spotted 117 | . 18 6 25 . . . 24 44 Peak Tracking Total 5 | . 5 3 5 . . . 4 4 Tactical Retreats 10 | . 2 . . . . . 1 7 Traps | -11 -10 -10 -9 -9 -9 -8 -8 -7 ------- Run | Yrd Mat Min Mat Min Exi Min Mat Fac Traps Triggered 6 | . . . . . . . 2 4 Indirectly . | . . . . . . . . . Trap Hack Attempts . | . . . . . . . . . Triggered . | . . . . . . . . . Disarmed . | . . . . . . . . . Reprogrammed . | . . . . . . . . . Reused . | . . . . . . . . . Traps Extracted . | . . . . . . . . . Installed . | . . . . . . . . . Triggered . | . . . . . . . . . Machines | -11 -10 -10 -9 -9 -9 -8 -8 -7 ---------- Run | Yrd Mat Min Mat Min Exi Min Mat Fac Machines Disabled 19 | . 1 . 3 . . . 4 11 Max in Single Turn 2 | . 1 . 2 . . . 1 2 Garrison Access 2 | . . . . . . . 1 1 Machines Repaired . | . . . . . . . . . Machines Dismantled . | . . . . . . . . . Machines Sabotaged . | . . . . . . . . . Overloaded Fab Kills . | . . . . . . . . . Hacking | -11 -10 -10 -9 -9 -9 -8 -8 -7 --------- Run | Yrd Mat Min Mat Min Exi Min Mat Fac Machines Accessed 36 | . 3 . 5 . 1 . 9 18 Terminals 23 | . 2 . 5 . . . 5 11 Fabricators 3 | . . . . . . . . 3 Repair Stations 3 | . . . . . . . 2 1 Recycling Units 3 | . 1 . . . . . . 2 Scanalyzers 1 | . . . . . . . 1 . Garrison Access 2 | . . . . . . . 1 1 Total Hacks 94 | . 7 . 18 . 1 . 23 45 Successful 40 | . 1 . 8 . 1 . 12 18 Failed 54 | . 6 . 10 . . . 11 27 Catastrophic 9 | . 1 . . . . . 1 7 Database Lockouts . | . . . . . . . . . Manual 46 | . 2 . 12 . . . 10 22 Terminals 68 | . 5 . 18 . . . 14 31 Fabricators 7 | . . . . . . . . 7 Repair Stations 8 | . . . . . . . 5 3 Recycling Units 5 | . 2 . . . . . . 3 Scanalyzers 3 | . . . . . . . 3 . Garrison Access 2 | . . . . . . . 1 1 Terminal Hacks 14 | . . . 5 . 1 . 2 6 Record 1 | . . . . . 1 . . . Part Schematic 1 | . . . . . . . . 1 Robot Analysis 2 | . . . 2 . . . . . Prototype ID Bank 2 | . . . 1 . . . . 1 Branch Access Points 1 | . . . 1 . . . . . Locate Traps 3 | . . . 1 . . . 1 1 Transport Status 2 | . . . . . . . . 2 Zone Layout 2 | . . . . . . . 1 1 Fabricator Hacks 3 | . . . . . . . . 3 Network Status 1 | . . . . . . . . 1 Load Schematic 1 | . . . . . . . . 1 Build 1 | . . . . . . . . 1 Repair Station Hacks 5 | . . . . . . . 3 2 Scan Component 3 | . . . . . . . 2 1 Repair 2 | . . . . . . . 1 1 Recycling Unit Hacks 2 | . 1 . . . . . . 1 Retrieve Components 2 | . 1 . . . . . . 1 Scanalyzer 2 | . . . . . . . 2 . Insert Component 1 | . . . . . . . 1 . Analyze 1 | . . . . . . . 1 . Garrison Access Hacks 2 | . . . . . . . 1 1 Seal Access 2 | . . . . . . . 1 1 Unauthorized Hacks 12 | . . . 3 . . . 4 5 Terminals 11 | . . . 3 . . . 4 4 Assimilate 1 | . . . . . . . 1 . Botnet 6 | . . . 1 . . . 2 3 Operators 4 | . . . 2 . . . 1 1 Fabricators 1 | . . . . . . . . 1 Prioritize 1 | . . . . . . . . 1 Repair Stations . | . . . . . . . . . Recycling Units . | . . . . . . . . . Scanalyzers . | . . . . . . . . . Garrison Access . | . . . . . . . . . Data Cores Recovered . | . . . . . . . . . Used . | . . . . . . . . . Hacking Detections 29 | . 3 . 5 . . . 6 15 Full Trace Events 4 | . 2 . . . . . 1 1 Feedback Events 1 | . 1 . . . . . . . Corruption 1 | . 1 . . . . . . . Feedback Blocked . | . . . . . . . . . Robot Schematics Acquired . | . . . . . . . . . Robots Built . | . . . . . . . . . Authchips . | . . . . . . . . . Time . | . . . . . . . . . Total Robot Build Rating . | . . . . . . . . . Part Schematics Acquired 2 | . . . . . . . 1 1 Parts Built 2 | . . . . . . . . 2 Authchips . | . . . . . . . . . Time 42 | . . . . . . . . 42 Total Part Build Rating 8 | . . . . . . . . 8 Parts Repaired 2 | . . . . . . . 1 1 Time 94 | . . . . . . . 64 30 Parts Recycled . | . . . . . . . . . Recycled Matter . | . . . . . . . . . Retrieved Matter . | . . . . . . . . . Retrieved Components 18 | . 10 . . . . . . 8 Parts Scanalyzed 1 | . . . . . . . 1 . Part Schematics Acquired 1 | . . . . . . . 1 . Parts Damaged . | . . . . . . . . . Bothacking | -11 -10 -10 -9 -9 -9 -8 -8 -7 ------------ Run | Yrd Mat Min Mat Min Exi Min Mat Fac Used RIF Installer . | . . . . . . . . . Robots Hacked . | . . . . . . . . . Non-combat . | . . . . . . . . . Combat . | . . . . . . . . . Robot Hacks Applied . | . . . . . . . . . Relay Couplers Released 4 | . . . . . . . 1 3 Machine Destruction 1 | . . . . . . . 1 . Programmers 3 | . . . . . . . . 3 Fabnet Peak Effective % . | . . . . . . . . . Robots Rewired . | . . . . . . . . . Allies Hacked . | . . . . . . . . . Hacks Repelled . | . . . . . . . . . Allies | -11 -10 -10 -9 -9 -9 -8 -8 -7 -------- Run | Yrd Mat Min Mat Min Exi Min Mat Fac Total Allies 1 | . . . . . . . 1 . Largest Group 1 | . . . . . . . 1 . Highest-Rated Group 10 | . . . . . . . 10 . Highest-Rated Ally 10 | . . . . . . . 10 . Total Orders . | . . . . . . . . . Ally Attacks . | . . . . . . . . . Total Damage . | . . . . . . . . . Kills . | . . . . . . . . . Allies Corrupted . | . . . . . . . . . Allies Melted . | . . . . . . . . . Intel | -11 -10 -10 -9 -9 -9 -8 -8 -7 ------- Run | Yrd Mat Min Mat Min Exi Min Mat Fac Active Infowar (turns) 6322 | 30 584 28 872 344 195 27 1190 3052 Sensors 5680 | . . . 872 344 195 27 1190 3052 Seismic 642 | 30 584 28 . . . . . . Robot Analysis Total 2 | . . . 2 . . . . . Derelict Logs Recovered 1 | . . . . 1 . . . . Drone Launches . | . . . . . . . . . Drone Recoveries . | . . . . . . . . . Exploration | -11 -10 -10 -9 -9 -9 -8 -8 -7 ------------- Run | Yrd Mat Min Mat Min Exi Min Mat Fac Turns Passed 6854 | 274 584 180 886 344 195 27 1312 3052 Spaces Moved 4887 | 139 288 94 592 312 173 22 763 2504 Core 3 | 3 . . . . . . . . Treads 654 | 136 288 94 136 . . . . . Legs . | . . . . . . . . . Wheels 1726 | . . . 456 312 173 22 763 . Hover 2504 | . . . . . . . . 2504 Flight . | . . . . . . . . . Fastest Speed 50 | 50 160 160 95 110 110 125 98 98 Average Speed 112 | 157 160 160 120 110 112 125 121 99 Slowest Speed 240 | 160 160 160 240 110 125 125 170 171 Overloaded Moves . | . . . . . . . . . Propulsion Burnouts . | . . . . . . . . . Robots Hopped . | . . . . . . . . . Potential Cave-ins . | . . . . . . . . . Cave-ins Triggered . | . . . . . . . . . Exploration Rate (%) 44 | 7 56 45 48 67 54 16 53 56 Regions Visited 8 Branch Regions 4 Pre-discovered Areas 1 | . . . . . 1 . . . Known Exits Taken 2 | . . . 1 . . . 1 . Unknown Exits Taken 6 | 1 1 1 . 1 1 1 . . Scrap Searched 2 | . . . . 1 . 1 . . Spaces Dug 16 | . . . 2 . . . . 14 Terrain Destroyed 223 | . 23 31 59 . . . 15 95 Melee 15 | . . . 2 . . . . 13 Projectile 6 | . . . 3 . . . 1 2 AOE 200 | . 23 31 54 . . . 14 78 Terrain Rammed . | . . . . . . . . . Walls Destroyed . | . . . . . . . . . Machines Disabled . | . . . . . . . . . Actions | -11 -10 -10 -9 -9 -9 -8 -8 -7 --------- Run | Yrd Mat Min Mat Min Exi Min Mat Fac Total 5683 | 163 344 111 688 312 174 21 1008 2862 Wait 280 | 2 11 4 10 . . . 95 158 Move 4879 | 138 287 93 591 311 172 21 762 2504 Hop . | . . . . . . . . . Pick Up 57 | 2 9 1 8 . . . 22 15 Fast Attach 35 | 7 . . 7 . . . 11 10 Attach 10 | . . . 4 . . . 3 3 Detach 8 | . . . 5 . . . 2 1 Swap 62 | . 4 5 11 1 1 . 21 19 Drop 58 | . . 1 9 . 1 . 21 26 Fire 222 | 14 33 7 40 . . . 62 66 Melee 59 | . . . 3 . . . 9 47 Ram . | . . . . . . . . . Kick . | . . . . . . . . . Crush . | . . . . . . . . . Escape Stasis 13 | . . . . . . . . 13 Rewire . | . . . . . . . . . Trap . | . . . . . . . . . Miscellaneous . | . . . . . . . . . Route ------- -11/Scrapyard -10/Materials (discovered 2 exits: *Mat / [*Min]) -10/Mines -9/Materials (discovered 2 exits: *Mat / *Min) -9/Mines (discovered 3 exits: *Mat x2 / *Exi) -9/Exiles -8/Mines -8/Materials -7/Factory (discovered 2 exits: [*Fac] / *Sto) History --------- Turn | Location | Event 14 | -11/Scrapyard | Discovered new exit (range 15) 275 | -11/Scrapyard | Entered Materials 314 | -10/Materials | Build established: Mutant 660 | -10/Materials | Discovered new exit (range 16) 755 | -10/Materials | Discovered new exit (range 9) 859 | -10/Materials | Entered Mines 866 | -10/Mines | Received a Rocket Launcher from a helpful Derelict 1023 | -10/Mines | Discovered new exit (range 9) 1039 | -10/Mines | Entered Materials 1039 | -9/Materials | Evolved 2 slots: Utility x1, Weapon x1 1142 | -9/Materials | Discovered new exit (range 16) 1351 | -9/Materials | Destroyed 7 combat bots 1379 | -9/Materials | Build established: Skirmisher 1484 | -9/Materials | Discovered new exit (range 15) 1815 | -9/Materials | Identified exit to Mines 1925 | -9/Materials | Entered Mines 1989 | -9/Mines | Met a Derelict bent on vengeance 2066 | -9/Mines | Discovered new exit (range 10) 2202 | -9/Mines | Discovered new exit (range 14) 2213 | -9/Mines | Found a hidden stash of uninstalled traps 2262 | -9/Mines | Deemed a non-threat by the Exiles lab entrance 2264 | -9/Mines | Discovered new exit (range 5) 2269 | -9/Mines | Entered Exiles 2296 | -9/Exiles | Met 8R-AWN 2317 | -9/Exiles | Met EX-HEX 2373 | -9/Exiles | Met EX-DEC 2393 | -9/Exiles | Learned location of Zion (-7) 2454 | -9/Exiles | Discovered new exit (range 10) 2464 | -9/Exiles | Entered Mines 2474 | -8/Mines | Discovered new exit (range 14) 2491 | -8/Mines | Entered Materials 2491 | -8/Materials | Evolved 2 slots: Propulsion x1, Utility x1 2883 | -8/Materials | Met 7R-MNS 3475 | -8/Materials | Discovered new exit (range 9) 3486 | -8/Materials | Identified exit to Factory 3634 | -8/Materials | Repaired Broken Hvy. Ion Engine 3803 | -8/Materials | Entered Factory 3803 | -7/Factory | Evolved 2 slots: Propulsion x1, Utility x1 3804 | -7/Factory | Caught up to 7R-MNS 3804 | -7/Factory | Identified exit to Storage 4508 | -7/Factory | Discovered new exit (range 14) 4533 | -7/Factory | Build established: Mutant 4997 | -7/Factory | Build established: Skirmisher 5439 | -7/Factory | Garrison activated, responded to threat 5825 | -7/Factory | Repaired Aerolev Unit 5963 | -7/Factory | Fabricated Gravmag System (x2) 6005 | -7/Factory | Build established: Mutant 6299 | -7/Factory | Garrison activated, responded to threat 6827 | -7/Factory | Garrison activated, responded to threat 6855 | -7/Factory | Self-destructed Last Messages --------------- 8J. 06794_ K-01 Serf cleans the Matter Pump. 06809_ Acquired 21 matter. 06811_ Acquired 25 matter. 06817_ K-01 Serf cleans the Matter Pump. 06818_ System corrupted: Component data lost. 06818_ Sneak attack on A-02 Transporter. 06820_ Destroyed Weight Redist. System. 06820_ A-02 Transporter system corrupted by crushing effect. 06827_ A-02 Transporter calls for garrison support. 06827_ ALERT: Activating Garrison Access F002. 06838_ Slug penetrates Wall. 06838_ Aerolev Unit destroyed. 06841_ Slug penetrates P-60 Hacker. 06841_ Aerolev Unit destroyed. 06844_ Gravmag System melted. 06844_ P-60 Hacker destroyed. 06844_ K-01 Serf cleans the Matter Pump. Map ----- +----------------------------------------------------+ | ?????????????????# ## # ##? | | ?????????????????# ## # # # | | ?????????????????# ## # " # | | ?????????????????# ## # # # | | ????????????????? ## # # # | | ?????????????????? ?# # = "## | | ??????????????????? ??# " ] "#? | | ??????????????????? ############+######+####### | | ?????????????????? | | ?????????????????? | | ?????????????????? """ """ | | ?????????????????? """ """ | | ?????????????????# """ """ | | ?????????????????# ####/#############+ | | ???????????####### """ """ # # | | ??????????# """ """ + """ # | | ??????????# """ """ ## """ # | | ??????????# ## """ # """ """ | | ??????????# """ ] """ """ ## # """ """ | | ??????????#^ """k """ "" ## """ k # """ """ | | ??????? ?# ^""" ""%t""" ## """ # | | ???????? # ] ## """ # """ """ | | ????????? # """ """ """ ## = # """ """ | | ????????" + %"" """["""! ## """ # """ """ | | ??????????# %"" """*""" ## """ # | | ??????????# g !@!! ## """ # | | ??????????# g %= ## ########### | | ??????????# ###########+#### """ #?????????# | | ########### # #?# """ #?????????# | | ku % # ]#?# """ #?????????# | | + #?# #?????????# | | # !/ #?#########??######## | | # ! """ #????????????#! # | | # """ #????????????# + | | ######## """ #????????????# """ # | | #??????# #????????????# """ # | | #???#### """ """ #????????????# """ # | | #? ## """ """ #????????????# =# | | #// ## """ """ ! #????????????######## | | #/[ # #???????????????????# | | #/ ##############???????????????????# | | #### # #???????????????????????????????# | | # # #???????????????????????????????# | | ]! # # #???????????????????????????????# | | %] / # #???????????????????????????????# | | ] # + ##???????????????????????????????# | | # # #????????????????????????????????# | | # % # #????????????????????????????????# | | #### # *##????????????????????????????????? | | ???# ###/###?????????????????????????????????? | +----------------------------------------------------+ Best States ------------- Heat Dissipation 45 Energy Generation 16 Energy Capacity 290 Matter Stores 300 Matter Capacity 300 Sight Range 16 Robot Scan Range 15 Terrain Scan Density 10 Armor Coverage 225 Evasion (%) 41 Recoil Reduction 2 Offensive Hacking 10 Defensive Hacking 10 Item Schematics ----------------- System Shield | -8/Materials | Scanalyzed Gravmag System | -7/Factory | Hacked Robot Schematics ------------------ None Fabricated ------------ Gravmag System | x2 | -7/Factory Repaired ---------- Hvy. Ion Engine | 10% | -8/Materials | Broken Aerolev Unit | 37% | -7/Factory Alien Tech Used ----------------- None Achievements -------------- Batter Up Challenges ------------ None Game ------ Seed RocketCatalystCharge Manual? 0 Play Time 01:01:50 Cumulative 93.9 hours Start 2025.07.08 @ 10:27:19 End 2025.07.08 @ 13:32:45 Sessions 1 Manual Loads 0 Difficulty Rogue Special Mode None Game No. 76 Rogue 76 Adventurer 0 Explorer 0 Win Type - Total 2 Types 2/0/0/0/0/0/0/0/0/0 Lore% 46 Gallery% 41 Achievement% 44 Wizard Run 0 Options --------- Layout 2 ASCII 0 Keyboard 1 Movement Numpad Keybinds 0 Fullscreen 2 Font 32/SmallcapsGlow Map View 50x44 Zoom Use 0% Tactical HUD 1 Map Filters NONE Filters NONE Steam 1 RUN: 88aa4c62-9271-45f4-b144-3400b8f9a9a4